Cogmind - Beta 13 @@@ ROGUE MODE // 2024.03.30 @ 18:00:31 Player: MORONI274 Result: Destroyed by G-47 Trooper with Particle Gun Performance ------------- Evolutions (1) 500 Regions Visited (2) 400 Robots Destroyed (23) 115 Value Destroyed (608) 608 Prototype IDs (0) 0 Alien Tech Used (0) 0 Bonus (8) 8 TOTAL SCORE: 1631 Bonus ------- High Alert Combat Kills 8 Cogmind --------- Core Integrity 0/400 Matter 82/300 Energy 30/100 System Corruption 0% Temperature Cool (9) Movement Core (450) Ox8 Location -9/Materials Parts ------- > --- POWER (1) -------- (None) > --- PROPULSION (2) --- (None) > --- UTILITY (3) ------ Large Storage Unit > --- WEAPON (3) ------- Improved Grenade Launcher > --- INVENTORY (15) --- Compact Wheel Large Storage Unit Small Matter Pod (0) Structural Scanner Sensor Array High-powered Tractor Beam Improved Grenade Launcher Improved Grenade Launcher Peak State ------------ > --- POWER ------------ Light Ion Engine > --- PROPULSION ------- Light Treads Light Treads > --- UTILITY ---------- Large Storage Unit Sensor Array Shield Generator > --- WEAPON ----------- Light Assault Rifle Grenade Launcher Grenade Launcher > --- INVENTORY -------- Ion Engine Light Treads Compact Wheel Compact Wheel Large Storage Unit Small Matter Pod Structural Scanner Shield Generator Shield Generator Shield Generator Grenade Launcher Grenade Launcher Grenade Launcher [Rating: 11] Favorites ----------- Power Light Ion Engine Engine Light Ion Engine Propulsion Light Treads Treads Light Treads Wheel Compact Wheel Utility Large Storage Unit Device Sensor Array Storage Large Storage Unit Protection Power Shielding Weapon Grenade Launcher Energy Gun Medium Laser Ballistic Gun Light Assault Rifle Launcher Grenade Launcher Build | -11 -10 -9 ------- Run | Yrd Mat Mat Slots Evolved 2 | . . 2 Power . | . . . Propulsion . | . . . Utility 1 | . . 1 Weapon 1 | . . 1 Parts Attached 31 | 6 9 16 Power 3 | 2 . 1 Engine 3 | 2 . 1 Core . | . . . Reactor . | . . . Propulsion 6 | 2 1 3 Treads 5 | 2 1 2 Leg . | . . . Wheel 1 | . . 1 Hover . | . . . Flight . | . . . Utility 13 | . 7 6 Device 7 | . 2 5 Storage 4 | . 4 . Processor . | . . . Hackware . | . . . Protection 2 | . 1 1 Artifact . | . . . Weapon 9 | 2 1 6 Energy Gun 1 | 1 . . Energy Cannon . | . . . Ballistic Gun 2 | 1 . 1 Ballistic Cannon . | . . . Launcher 6 | . 1 5 Special Weapon . | . . . Impact Weapon . | . . . Slashing Weapon . | . . . Piercing Weapon . | . . . Special Melee Weapon . | . . . Unidentified Prototypes . | . . . Parts Lost 17 | . . 17 Power 2 | . . 2 Propulsion 4 | . . 4 Utility 5 | . . 5 Weapon 6 | . . 6 Highest Loss Streak 5 | . . 5 To Critical Strikes . | . . . Average Slot Usage (%) 86 | . 98 76 Engine 11 | . 14 8 Treads 20 | . 28 13 Wheel 1 | . . 2 Device 11 | . 4 16 Storage 14 | . 18 11 Protection 1 | . 3 . Energy Gun 4 | . 9 . Ballistic Gun 10 | . 14 7 Launcher 10 | . 4 15 Naked Turns . | . . . Heaviest Build 47 | 6 47 35 Greatest Support 40 | 40 40 40 Greatest Overweight (x) 10 | . 1 10 Average Overweight (x) . | . . . Largest Inventory Capacity 15 | 5 15 15 Average Capacity 13 | 5 14 15 Most Carried 15 | 5 15 15 Average Carried 10 | 3 9 11 Final Capacity 15 | 5 15 15 Final Carried 15 | 4 15 8 Class Distribution -------------------- 61% | Mutant 28% | Tank 9% | Skirmisher Dominant Class ---------------- Mutant | -10/Materials Tank | -9/Materials Resources | -11 -10 -9 ----------- Run | Yrd Mat Mat Matter Collected 494 | 232 63 199 Remotely . | . . . Salvage Created 423 | . 85 338 Parts 45 | . 4 41 Haulers Intercepted . | . . . Recyclers Shooed . | . . . Parts Field Recycled . | . . . Retrieved Matter . | . . . Parts Self-Destructed . | . . . Prevented . | . . . Kills | -11 -10 -9 ------- Run | Yrd Mat Mat Combat Hostiles Destroyed 16 | . 2 14 Guns 2 | . 2 . AOE 14 | . . 14 Classes Destroyed 7 | . 1 6 Worker 1 | . . 1 Builder 3 | . . 3 Tunneler 1 | . . 1 Watcher 2 | . . 2 Swarmer 2 | . . 2 Grunt 13 | . 2 11 Sentry 1 | . . 1 Best Kill Streak 15 | . 2 15 Combat Bots Only 8 | . 2 8 Max Kills in Single Turn 3 | . 1 3 Gunslinging . | . . . Exploded 2 | . . 2 Melee . | . . . Uniques/NPCs Destroyed . | . . . Combat | -11 -10 -9 -------- Run | Yrd Mat Mat Hostile Shots Fired 182 | . 7 175 Missed 45 | . . 45 Damage Taken 1741 | . 98 1643 Core 411 | . . 411 Absorbed by Shields 308 | . . 308 Core Remaining (%) 100 | 100 100 . Volleys Fired 26 | . 5 21 Largest 3 | . 2 3 Hottest 80 | . 70 80 Shots Fired 56 | . 10 46 Gun 24 | . 10 14 Cannon . | . . . Launcher 32 | . . 32 Special . | . . . Kinetic 19 | . 5 14 Thermal 5 | . 5 . Explosive 32 | . . 32 Electromagnetic . | . . . Robot Hit Streak 13 | . 8 13 Robot Miss Streak 2 | . 1 2 Penetration Max . | . . . Secondary Targets 1 | . 1 . Max Gunslinging Chain 1 | . 1 . Shots Hit Robots 31 | . 9 22 Core Hits 55 | . 5 50 Critical Kills . | . . . Critical Parts Destroyed . | . . . Critical Strikes 1 | . 1 . Burn 1 | . 1 . Melee Attacks . | . . . Impact . | . . . Slashing . | . . . Piercing . | . . . Sneak Attacks . | . . . Combat Hostiles . | . . . Follow-up Attacks . | . . . Damage Inflicted 1649 | . 94 1555 Guns 137 | . 94 43 Cannons . | . . . Explosions 1465 | . . 1465 Melee . | . . . Ramming 47 | . . 47 Kinetic 76 | . 33 43 Thermal 61 | . 61 . Explosive 1465 | . . 1465 Electromagnetic . | . . . Impact . | . . . Slashing . | . . . Piercing . | . . . Highest Corruption 2 | . 2 . Average Corruption 2 | . 2 . Corruption Purged . | . . . Corruption Blocked . | . . . Effects 1 | . 1 . Message Errors 1 | . 1 . Overload Shots . | . . . Overflow Damage 12 | . . 12 Projectiles . | . . . Explosions 12 | . . 12 Melee . | . . . Knockbacks . | . . . Impact . | . . . Kinetic . | . . . Secondary . | . . . Self-Inflicted Damage 240 | . . 240 Shots 10 | . . 10 Rammed 19 | . . 19 Targets Rammed 19 | . . 19 Kicked . | . . . Crushed . | . . . Highest Temperature 144 | . 144 30 Average Temperature 30 | . 69 11 Received Heat Transfer 655 | . 54 601 Siege Activations . | . . . Robots Corrupted . | . . . Combat Hostiles . | . . . Parts Fried . | . . . Impact Corruptions . | . . . Robots Melted . | . . . Combat Hostiles . | . . . Parts Melted 1 | . 1 . Heat Transferred 259 | . 259 . Parts Sabotaged . | . . . Parts Stolen . | . . . Parts Stripped . | . . . Power Chain Reactions . | . . . Alert | -11 -10 -9 ------- Run | Yrd Mat Mat Peak Influence 425 | . 50 425 Initial 7 | . . 7 Average 85 | . 19 155 Maximum Alert Level 2 | . . 2 Low Security (%) 78 | 100 100 57 Level 1 14 | . . 28 Level 2 6 | . . 13 Level 3 . | . . . Level 4 . | . . . Level 5 . | . . . High Security . | . . . Max Security . | . . . Squads Dispatched 4 | . 1 3 Investigation . | . . . Extermination . | . . . Reinforcement 4 | . 1 3 Assault . | . . . Garrison . | . . . Intercept . | . . . Searches Triggered . | . . . Construction Impeded 1 | . . 1 Haulers Reinforced . | . . . Active Scanning Responses . | . . . Cargo Convoy Interrupts . | . . . Stealth | -11 -10 -9 --------- Run | Yrd Mat Mat Distress Signals 1 | . . 1 Communications Jammed . | . . . Distress Signals . | . . . Times Spotted 30 | . 5 25 Peak Tracking Total 10 | . 2 10 Tactical Retreats 1 | . . 1 Traps | -11 -10 -9 ------- Run | Yrd Mat Mat Traps Triggered 2 | . 2 . Indirectly . | . . . Trap Hack Attempts . | . . . Triggered . | . . . Disarmed . | . . . Reprogrammed . | . . . Reused . | . . . Traps Extracted . | . . . Installed . | . . . Triggered . | . . . Machines | -11 -10 -9 ---------- Run | Yrd Mat Mat Machines Disabled 2 | . . 2 Max in Single Turn 2 | . . 2 Machines Repaired . | . . . Machines Dismantled . | . . . Machines Sabotaged . | . . . Overloaded Fab Kills . | . . . Hacking | -11 -10 -9 --------- Run | Yrd Mat Mat Machines Accessed 3 | . 2 1 Terminals 2 | . 1 1 Fabricators . | . . . Repair Stations 1 | . 1 . Recycling Units . | . . . Scanalyzers . | . . . Garrison Access . | . . . Total Hacks 6 | . 2 4 Successful 4 | . 2 2 Failed 2 | . . 2 Catastrophic . | . . . Database Lockouts . | . . . Manual 2 | . . 2 Terminals 5 | . 1 4 Fabricators . | . . . Repair Stations 1 | . 1 . Recycling Units . | . . . Scanalyzers . | . . . Garrison Access . | . . . Terminal Hacks 3 | . 1 2 Record 1 | . 1 . Robot Analysis 1 | . . 1 Unreport Threat 1 | . . 1 Fabricator Hacks . | . . . Repair Station Hacks 1 | . 1 . Scan Component 1 | . 1 . Recycling Unit Hacks . | . . . Scanalyzer . | . . . Garrison Access Hacks . | . . . Unauthorized Hacks . | . . . Terminals . | . . . Fabricators . | . . . Repair Stations . | . . . Recycling Units . | . . . Scanalyzers . | . . . Garrison Access . | . . . Data Cores Recovered . | . . . Used . | . . . Hacking Detections 3 | . 1 2 Full Trace Events 1 | . . 1 Feedback Events . | . . . Feedback Blocked . | . . . Robot Schematics Acquired . | . . . Robots Built . | . . . Authchips . | . . . Time . | . . . Total Robot Build Rating . | . . . Part Schematics Acquired . | . . . Parts Built . | . . . Authchips . | . . . Time . | . . . Total Part Build Rating . | . . . Parts Repaired . | . . . Time . | . . . Parts Recycled . | . . . Recycled Matter . | . . . Retrieved Matter . | . . . Retrieved Components . | . . . Parts Scanalyzed . | . . . Part Schematics Acquired . | . . . Parts Damaged . | . . . Bothacking | -11 -10 -9 ------------ Run | Yrd Mat Mat Used RIF Installer . | . . . Robots Hacked . | . . . Non-combat . | . . . Combat . | . . . Robot Hacks Applied . | . . . Relay Couplers Released . | . . . Fabnet Peak Effective % . | . . . Robots Rewired . | . . . Allies Hacked . | . . . Hacks Repelled . | . . . Allies | -11 -10 -9 -------- Run | Yrd Mat Mat Total Allies . | . . . Largest Group . | . . . Highest-Rated Group . | . . . Highest-Rated Ally . | . . . Total Orders . | . . . Ally Attacks . | . . . Total Damage . | . . . Kills . | . . . Allies Corrupted . | . . . Allies Melted . | . . . Intel | -11 -10 -9 ------- Run | Yrd Mat Mat Robot Analysis Total 1 | . . 1 Derelict Logs Recovered . | . . . Drone Launches . | . . . Drone Recoveries . | . . . Exploration | -11 -10 -9 ------------- Run | Yrd Mat Mat Turns Passed 1358 | 119 556 683 Spaces Moved 705 | 79 287 339 Core 21 | 20 . 1 Treads 582 | 59 287 236 Legs . | . . . Wheels 102 | . . 102 Hover . | . . . Flight . | . . . Fastest Speed 50 | 50 160 115 Average Speed 165 | 132 175 164 Slowest Speed 550 | 160 240 550 Overloaded Moves . | . . . Propulsion Burnouts . | . . . Robots Hopped . | . . . Cave-ins Triggered . | . . . Exploration Rate (%) 22 | 5 29 33 Regions Visited 2 Branch Regions . Pre-discovered Areas . | . . . Known Exits Taken . | . . . Unknown Exits Taken 2 | 1 1 . Scrap Searched . | . . . Spaces Dug . | . . . Terrain Destroyed 199 | . . 199 Melee . | . . . Projectile . | . . . AOE 199 | . . 199 Terrain Rammed . | . . . Walls Destroyed . | . . . Machines Disabled . | . . . Actions | -11 -10 -9 --------- Run | Yrd Mat Mat Total 833 | 93 334 406 Wait 4 | . . 4 Move 703 | 78 286 339 Hop . | . . . Pick Up 39 | 9 24 6 Fast Attach . | . . . Attach 20 | 5 3 12 Detach . | . . . Swap 11 | 1 6 4 Drop 11 | . 10 1 Fire 26 | . 5 21 Melee . | . . . Ram 2 | . . 2 Kick . | . . . Crush 17 | . . 17 Escape Stasis . | . . . Rewire . | . . . Trap . | . . . Miscellaneous . | . . . Route ------- -11/Scrapyard -10/Materials (discovered 2 exits: *Mat / [*Min]) -9/Materials History --------- Turn | Location | Event 12 | -11/Scrapyard | Discovered new exit (range 16) 120 | -11/Scrapyard | Entered Materials 316 | -10/Materials | Build established: Mutant 375 | -10/Materials | Discovered new exit (range 16) 578 | -10/Materials | Discovered new exit (range 16) 676 | -10/Materials | Entered another Materials area 676 | -9/Materials | Evolved 2 slots: Utility x1, Weapon x1 917 | -9/Materials | Build established: Tank 977 | -9/Materials | Lost 4 parts (1p1u2w) 1004 | -9/Materials | Destroyed 8 combat bots 1193 | -9/Materials | Core integrity fell below 50% 1198 | -9/Materials | Lost 5 parts (1n1u3w) 1268 | -9/Materials | Lost 3 parts (1n1u1w) 1341 | -9/Materials | Core integrity fell below 20% 1359 | -9/Materials | Destroyed by G-47 Trooper with Particle Gun Last Messages --------------- Purged threat record, alert level lowered. 01266_ U-05 Engineer lays Concrete. 01290_ Acquired Imp. Grenade Launcher. 01298_ Shield Generator destroyed. 01301_ K-01 Serf cleans the Nuclear Reactor. 01307_ Critical hit (Burn: +27). 01326_ Ion Engine destroyed. 01333_ C-30 ARC bursts open, deploying its payload. 01333_ S-10 Pest unfolds itself. 01337_ Slammed into S-10 Pest. 01339_ Acquired 108 matter. 01349_ Shield Generator destroyed. 01353_ C-30 ARC bursts open, deploying its payload. 01353_ G-47 Trooper unfolds itself. 01353_ G-34 Mercenary unfolds itself. 01354_ Destroyed Hover Unit. 01354_ G-34 Mercenary destroyed. 01356_ Com. Wheel destroyed. 01356_ W-16 Scout destroyed. 01358_ S-10 Pest destroyed. Map ----- +----------------------------------------------------+ | # #???#== [[#????????????????????????? | | #+####### #???# #????????????????????????? | | #?############ ###??????##??????????????? | | ### ###?### #??????????????? | | ! # #??????????????? | | # """ #??????????????? | | " # """ #??????????????? | | T """ """ """ """ # """ #??????????????? | | " """ """ """ """ # """ #??????????????? | | """ """ """ """ # #??????????????? | | + """ #??????????????? | | # """ #??????????????? | | + """ #??????????????? | | # """ #??????????????? | | % # #??????????????? | | ## ##### # """ #??????????????? | | ^ ## #??? Y """ #??????????????? | | ^ !! ##[[!!!!#??? """" #??????????????? | | !! ##[[!!!!#??? Y """ #??????????????? | | !! #########??? % ]#??????????????? | | #??????????? #??????????????? | | * #???????????# #########??????????????? | | #### ###?????????### #??????????????????????? | | ######??#+#??????????## # ####???????????????????? | | ????????? ??????????# #???????????????????? | | ?????????????????????# @ #???????????????????? | | ?????????????????????## !% #???????????????????? | | ?????????????????????# g #???????????????????? | | ?????????????????????# [ #???????????????????? | | ?????????????????????# % ##???????????????????? | | ????????????????????? g % ????????????????????? | | ???????????????????? """ """ #???????????????????? | | ???????????????????#r""" """ #???????????????????? | | ???????????????????#u""" """ +???????????????????? | | ???????????????????+?? #???????????????????? | | ??????????????????????? ??? #???????????????????? | | ??????????????????????? ????????????????????????? | | ??????????????????????? ????????????????????????? | | ???????????????????????##????????????????????????? | | ?????????????????????????????????????????????????? | | ?????????????????????????????????????????????????? | | ?????????????????????????????????????????????????? | | ?????????????????????????????????????????????????? | | ?????????????????????????????????????????????????? | | ?????????????????????????????????????????????????? | | ?????????????????????????????????????????????????? | | ?????????????????????????????????????????????????? | | ?????????????????????????????????????????????????? | | ?????????????????????????????????????????????????? | | ?????????????????????????????????????????????????? | +----------------------------------------------------+ Best States ------------- Heat Dissipation 28 Energy Generation 10 Energy Capacity 250 Matter Stores 300 Matter Capacity 350 Sight Range 16 Robot Scan Range 14 Terrain Scan Density 10 Armor Coverage 150 Power Shielding 33 Evasion (%) 50 Recoil Reduction 2 Item Schematics ----------------- None Robot Schematics ------------------ None Fabricated ------------ Nothing Alien Tech Used ----------------- None Achievements -------------- Everything Is Under Control Let's See Who's Tougher Oops Challenges ------------ None Game ------ Seed CarbideForceKit Manual? 0 Play Time 00:17:59 Cumulative 1.1 hours Start 2024.03.30 @ 17:34:09 End 2024.03.30 @ 18:00:31 Sessions 1 Manual Loads 0 Difficulty Rogue Special Mode None Game No. 4 Rogue 4 Adventurer 0 Explorer 0 Win Type - Total 0 Types 0/0/0/0/0/0/0/0/0 Lore% 0 Gallery% 3 Achievement% 3 Wizard Run 0 Options --------- Layout 2 ASCII 0 Keyboard 0 Movement Arrows Keybinds 0 Fullscreen 0 Font 14/SmallcapsGlow Map View 59x54 Zoom Use 0% Tactical HUD 1 Map Filters NONE Filters NONE Steam SD RUN: 5198becf-9704-4111-9f6f-bd836a93d32b